[Event "TUR-chT Superleague 2018"]
[Site "Ankara"]
[Date "2018.07.26"]
[Round "2"]
[White "Demircioglu, Emre"]
[Black "Dastan, Muhammed Batuhan"]
[Result "0-1"]
[ECO "E63"]
[WhiteElo "2244"]
[BlackElo "2552"]
[Annotator "ChessBase"]
[PlyCount "140"]
[EventDate "2018.07.25"]
[EventType "team-tourn"]
[EventCountry "TUR"]
[SourceTitle "playchess.com"]
[Source "ChessBase"]
[SourceQuality "1"]
[TimeControl "40/5400+30:1800+30"]

1. d4 Nf6 2. c4 g6 3. Nc3 Bg7 4. g3 O-O 5. Bg2 d6 6. Nf3 Nc6 7. O-O a6 8. Re1 Rb8 9. Rb1 Nh5 10. d5 Na5 11. Qd3 c5 12. b4 cxb4 13. Rxb4 Qc7 14. Bd2 Bd7 15. Rc1 Rfc8 16. Na4 b6 17. Qb1 Bxa4 18. Rxa4 Nf6 19. Bh3 Nd7 20. Qb4 f5 21. e4 Nc5 22. exf5 Nd3 23. Qa3 Nxc1 24. Qxc1 Nxc4 25. f6 Bxf6 26. Bxc8 Rxc8 27. Bg5 Ne5 28. Qxc7 Nxf3+ 29. Kg2 Rxc7 30. Bxf6 Ne1+ 31. Kf1 Nf3 32. Kg2 Ne1+ 33. Kf1 exf6 34. Kxe1 a5 35. Rf4 Kf7 36. a4 Rc5 37. Rd4 f5 38. Kd2 Kf6 39. f4 h6 40. Rd3 Rc4 41. Rb3 Rxa4 42. Kc3 g5 43. Rxb6 gxf4 44. gxf4 Rxf4 45. Rxd6+ Ke5 46. Rxh6 Kxd5 47. h4 {[%emt 2:15:37]} Rf3+ {[%emt 2:08:28]} 48. Kd2 {[%emt 0:00:30]} Ke4 {[%emt 0:00:30]} 49. h5 {[%emt 0:01:39]} Ra3 {[%emt 0:01:50]} 50. Rh8 {[%emt 0:01:48]} f4 {[%emt 0:09:40]} 51. h6 {[%emt 0:00:25]} Rh3 {[%emt 0:00:31]} 52. h7 {[%emt 0:00:52]} Kf3 {[%emt 0:00:01]} 53. Kc2 {[%emt 0:00:58]} Rh6 {[%emt 0:02:38]} 54. Kb2 {[%emt 0:00:43]} Rb6+ {[%emt 0:00:31]} 55. Ka3 {[%emt 0:02:36]} Rb7 {[%emt 0:00:01]} 56. Ka4 {[%emt 0:00:41]} Re7 {[%emt 0:00:25]} 57. Kxa5 {[%emt 0:01:59]} Ke3 {[%emt 0:00:07]} 58. Kb6 {[%emt 0:00:56]} f3 {[%emt 0:00:30]} 59. Kc6 {[%emt 0:00:30]} f2 {[%emt 0:00:00]} 60. Kd6 {[%emt 0:00:00]} f1=Q {[%emt 0:02:05]} 61. Kxe7 {[%emt 0:00:00]} Qf5 {[%emt 0:00:00]} 62. Re8 {[%emt 0:01:13]} Qxh7+ {[%emt 0:00:00]} 63. Kd6+ {[%emt 0:00:22]} Kd4 {[%emt 0:00:06]} 64. Re6 {[%emt 0:00:13]} Qb7 {[%emt 0:00:35]} 65. Re8 {[%emt 0:00:47]} Qb6+ {[%emt 0:01:14]} 66. Ke7 {[%emt 0:00:18]} Ke5 {[%emt 0:00:24]} 67. Kf7+ {[%emt 0:01:01]} Kf5 {[%emt 0:00:05]} 68. Kg7 {[%emt 0:00:26]} Qg6+ {[%emt 0:00:30]} 69. Kf8 {[%emt 0:00:00]} Qf6+ {[%emt 0:00:21]} 70. Kg8 {[%emt 0:00:00]} Kg6 {[%emt 0:00:30]} 0-1

[Event "TUR-chT Superleague 2018"]
[Site "Ankara"]
[Date "2018.07.26"]
[Round "2"]
[White "Yilmaz, Goktan"]
[Black "Kilic, Efe Mert"]
[Result "1/2-1/2"]
[ECO "B09"]
[WhiteElo "2233"]
[BlackElo "2317"]
[Annotator "NA"]
[PlyCount "45"]
[EventDate "2018.07.25"]
[EventType "team-tourn"]
[EventCountry "TUR"]
[SourceTitle "playchess.com"]
[Source "ChessBase"]
[SourceQuality "1"]
[TimeControl "40/5400+30:1800+30"]

1. e4 {[%emt 0:00:30]} d6 {[%emt 0:01:00]} 2. d4 {[%emt 0:00:30]} Nf6 {[%emt 0:00:30]} 3. Nc3 {[%emt 0:00:00]} g6 {[%emt 0:01:30]} 4. f4 {[%emt 0:03:00]} Bg7 {[%emt 0:00:30]} 5. Nf3 {[%emt 0:00:30]} O-O {[%emt 0:00:00]} 6. Be3 {[%emt 0:00:30]} Nbd7 {[%emt 0:00:00]} 7. Qd2 {[%emt 0:04:30]} c5 {[%emt 0:01:30]} 8. h3 {[%emt 0:16:30]} cxd4 {[%emt 0:01:30]} 9. Bxd4 {[%emt 0:02:30]} Qa5 {[%emt 0:12:30]} 10. Bd3 {[%emt 0:04:30]} e5 {[%emt 0:01:30]} 11. fxe5 {[%emt 0:05:30]} Nxe5 {[%emt 0:01:30]} 12. Nxe5 {[%emt 0:04:30]} dxe5 {[%emt 0:00:30]} 13. Be3 {[%emt 0:00:30]} Be6 {[%emt 0:01:30]} 14. O-O {[%emt 0:00:30]} Nh5 {[%emt 0:07:30]} 15. Nd5 {[%emt 0:10:30]} Qxd2 {[%emt 0:00:30]} 16. Bxd2 {[%emt 0:00:30]} Bxd5 {[%emt 0:02:30]} 17. exd5 {[%emt 0:00:00]} Rad8 {[%emt 0:00:30]} 18. Bb4 {[%emt 0:07:00]} e4 {[%emt 0:04:30]} 19. Bxe4 {[%emt 0:07:30]} Bd4+ {[%emt 0:01:30]} 20. Kh2 {[%emt 0:00:30]} Be5+ {[%emt 0:00:00]} 21. Kg1 {[%emt 0:00:30]} Bd4+ {[%emt 0:00:00]} 22. Kh2 {[%emt 0:00:30]} Be5+ {[%emt 0:00:30]} 23. Kg1 {[%emt 0:00:30]} 1/2-1/2

[Event "TUR-chT Superleague 2018"]
[Site "Ankara"]
[Date "2018.07.26"]
[Round "2"]
[White "Samani, Yamac"]
[Black "Ozen, Bahadir"]
[Result "1/2-1/2"]
[ECO "C47"]
[WhiteElo "2227"]
[BlackElo "2317"]
[Annotator "NA"]
[PlyCount "59"]
[EventDate "2018.07.25"]
[EventType "team-tourn"]
[EventCountry "TUR"]
[SourceTitle "playchess.com"]
[Source "ChessBase"]
[SourceQuality "1"]
[TimeControl "40/5400+30:1800+30"]

1. e4 {[%emt 0:00:30]} e5 {[%emt 0:01:00]} 2. Nf3 {[%emt 0:00:30]} Nc6 {[%emt 0:00:30]} 3. Nc3 {[%emt 0:00:30]} Nf6 {[%emt 0:00:30]} 4. d4 {[%emt 0:00:30]} exd4 {[%emt 0:01:30]} 5. Nxd4 {[%emt 0:00:30]} Bb4 {[%emt 0:00:30]} 6. Nxc6 {[%emt 0:00:30]} bxc6 {[%emt 0:00:30]} 7. Bd3 {[%emt 0:00:30]} d5 {[%emt 0:01:30]} 8. exd5 {[%emt 0:00:30]} O-O {[%emt 0:00:30]} 9. O-O {[%emt 0:00:30]} Bg4 {[%emt 0:00:00]} 10. Be2 {[%emt 0:09:30]} Bxe2 {[%emt 0:01:00]} 11. Qxe2 {[%emt 0:00:00]} cxd5 {[%emt 0:01:30]} 12. Qf3 {[%emt 0:12:00]} Re8 {[%emt 0:06:30]} 13. Bg5 {[%emt 0:03:30]} Bxc3 {[%emt 0:08:30]} 14. bxc3 {[%emt 0:02:30]} Qd6 {[%emt 0:01:30]} 15. Bxf6 {[%emt 0:05:30]} Qxf6 {[%emt 0:01:30]} 16. Qxd5 {[%emt 0:14:30]} Qxc3 {[%emt 0:00:30]} 17. Qb3 {[%emt 0:08:30]} Qc5 {[%emt 0:05:30]} 18. Rfe1 {[%emt 0:10:30]} Qc6 {[%emt 0:03:30]} 19. h3 {[%emt 0:01:30]} g6 {[%emt 0:00:30]} 20. Rad1 {[%emt 0:00:30]} Rxe1+ {[%emt 0:00:30]} 21. Rxe1 {[%emt 0:00:00]} Re8 {[%emt 0:01:30]} 22. Rxe8+ {[%emt 0:00:00]} Qxe8 {[%emt 0:00:30]} 23. Kf1 {[%emt 0:00:30]} Qc6 {[%emt 0:00:00]} 24. Qb8+ {[%emt 0:00:30]} Kg7 {[%emt 0:00:00]} 25. Qb2+ {[%emt 0:00:30]} Kg8 {[%emt 0:00:30]} 26. Qb8+ {[%emt 0:00:30]} Kg7 {[%emt 0:00:30]} 27. Qb2+ {[%emt 0:00:30]} Kg8 {[%emt 0:00:00]} 28. Qb8+ {[%emt 0:00:00]} Kg7 {[%emt 0:00:00]} 29. Qb2+ {[%emt 0:00:00]} Kg8 {[%emt 0:00:00]} 30. Qb8+ {[%emt 0:00:00]} 1/2-1/2

[Event "TUR-chT Superleague 2018"]
[Site "Ankara"]
[Date "2018.07.26"]
[Round "2"]
[White "Kinsiz, Onur"]
[Black "Ertan, Can"]
[Result "1-0"]
[ECO "C54"]
[WhiteElo "2204"]
[BlackElo "2379"]
[Annotator "NA"]
[PlyCount "85"]
[EventDate "2018.07.25"]
[EventType "team-tourn"]
[EventCountry "TUR"]
[SourceTitle "playchess.com"]
[Source "ChessBase"]
[SourceQuality "1"]
[TimeControl "40/5400+30:1800+30"]

1. e4 {[%emt 0:00:30]} e5 {[%emt 0:01:00]} 2. Nf3 {[%emt 0:00:30]} Nc6 {[%emt 0:00:30]} 3. Bc4 {[%emt 0:00:30]} Bc5 {[%emt 0:00:30]} 4. c3 {[%emt 0:00:30]} Nf6 {[%emt 0:00:00]} 5. d4 {[%emt 0:00:00]} exd4 {[%emt 0:00:00]} 6. e5 {[%emt 0:00:00]} d5 {[%emt 0:00:00]} 7. Bb5 {[%emt 0:00:30]} Ne4 {[%emt 0:00:00]} 8. cxd4 {[%emt 0:00:00]} Bb4+ {[%emt 0:02:30]} 9. Bd2 {[%emt 0:03:00]} Nxd2 {[%emt 0:03:30]} 10. Bxc6+ {[%emt 0:02:30]} bxc6 {[%emt 0:00:30]} 11. Nbxd2 {[%emt 0:00:00]} O-O {[%emt 0:04:30]} 12. O-O {[%emt 0:04:00]} Bg4 {[%emt 0:00:30]} 13. h3 {[%emt 0:22:30]} Bh5 {[%emt 0:00:30]} 14. Qa4 {[%emt 0:15:30]} c5 {[%emt 0:03:30]} 15. Rac1 {[%emt 0:08:30]} Rb8 {[%emt 0:10:30]} 16. dxc5 {[%emt 0:23:08]} Qe7 {[%emt 0:00:30]} 17. a3 {[%emt 0:05:33]} Bxd2 {[%emt 0:06:30]} 18. Nxd2 {[%emt 0:00:30]} Qxe5 {[%emt 0:00:00]} 19. b4 {[%emt 0:02:09]} a5 {[%emt 0:00:00]} 20. bxa5 {[%emt 0:05:08]} Qb2 {[%emt 0:06:30]} 21. Qf4 {[%emt 0:01:28]} Ra8 {[%emt 0:05:30]} 22. Nf3 {[%emt 0:01:51]} Qxa3 {[%emt 0:00:30]} 23. Nd4 {[%emt 0:01:51]} Qxa5 {[%emt 0:06:30]} 24. Nc6 {[%emt 0:00:40]} Qa2 {[%emt 0:02:30]} 25. Qxc7 {[%emt 0:00:33]} Qd2 {[%emt 0:02:30]} 26. Qe5 {[%emt 0:00:35]} Be2 {[%emt 0:00:30]} 27. Rfe1 {[%emt 0:00:27]} Bc4 {[%emt 0:03:30]} 28. Red1 {[%emt 0:01:03]} Qh6 {[%emt 0:03:30]} 29. Ne7+ {[%emt 0:00:19]} Kh8 {[%emt 0:00:00]} 30. Nxd5 {[%emt 0:00:36]} Bb3 {[%emt 0:00:00]} 31. Re1 {[%emt 0:00:44]} f6 {[%emt 0:00:30]} 32. Qf5 {[%emt 0:00:13]} Rae8 {[%emt 0:02:30]} 33. Nb6 {[%emt 0:00:39]} Qd2 {[%emt 0:02:30]} 34. Qb1 {[%emt 0:00:02]} Re5 {[%emt 0:17:18]} 35. c6 {[%emt 0:00:56]} Bc2 {[%emt 0:01:12]} 36. Qa1 {[%emt 0:00:33]} Rf5 {[%emt 0:01:33]} 37. Rf1 {[%emt 0:00:07]} Rg5 {[%emt 0:04:54]} 38. Qa3 {[%emt 0:00:52]} Re8 {[%emt 0:00:13]} 39. c7 {[%emt 0:00:29]} Be4 {[%emt 0:03:42]} 40. g3 {[%emt 0:00:00]} Bd3 {[%emt 0:04:38]} 41. c8=Q {[%emt 0:07:34]} Rxg3+ {[%emt 0:01:30]} 42. Kh2 {[%emt 0:03:30]} Rge3 {[%emt 0:01:30]} 43. Qf8+ {[%emt 0:00:00]} 1-0

[Event "TUR-chT Superleague 2018"]
[Site "Ankara"]
[Date "2018.07.26"]
[Round "2"]
[White "Kara, Yanki"]
[Black "Bozbey, Ali"]
[Result "0-1"]
[ECO "A45"]
[WhiteElo "2120"]
[BlackElo "2126"]
[Annotator "NA"]
[PlyCount "107"]
[EventDate "2018.07.25"]
[EventType "team-tourn"]
[EventCountry "TUR"]
[SourceTitle "playchess.com"]
[Source "ChessBase"]
[SourceQuality "1"]
[TimeControl "40/5400+30:1800+30"]

1. d4 {[%emt 0:00:30]} Nf6 {[%emt 0:01:00]} 2. Bg5 {[%emt 0:00:00]} Ne4 {[%emt 0:04:30]} 3. Bf4 {[%emt 0:00:00]} d5 {[%emt 0:00:00]} 4. f3 {[%emt 0:07:30]} Nf6 {[%emt 0:04:00]} 5. Nc3 {[%emt 0:02:30]} e6 {[%emt 0:01:30]} 6. e4 {[%emt 0:10:30]} Bb4 {[%emt 0:01:30]} 7. Bd3 {[%emt 0:01:30]} c5 {[%emt 0:04:30]} 8. dxc5 {[%emt 0:11:30]} O-O {[%emt 0:12:30]} 9. Bd6 {[%emt 0:04:30]} Re8 {[%emt 0:00:30]} 10. Nge2 {[%emt 0:05:30]} b6 {[%emt 0:19:30]} 11. e5 {[%emt 0:09:30]} Nfd7 {[%emt 0:01:30]} 12. cxb6 {[%emt 0:02:30]} Bxd6 {[%emt 0:01:30]} 13. exd6 {[%emt 0:00:30]} Qxb6 {[%emt 0:00:30]} 14. Nb5 {[%emt 0:00:30]} Na6 {[%emt 0:01:30]} 15. a4 {[%emt 0:01:30]} Ne5 {[%emt 0:04:30]} 16. Nec3 {[%emt 0:02:30]} Bd7 {[%emt 0:07:30]} 17. Qe2 {[%emt 0:01:30]} Nxd3+ {[%emt 0:00:30]} 18. Qxd3 {[%emt 0:04:30]} Nb4 {[%emt 0:01:30]} 19. Qd2 {[%emt 0:00:30]} Rec8 {[%emt 0:00:00]} 20. Qf2 {[%emt 0:04:30]} d4 {[%emt 0:01:00]} 21. a5 {[%emt 0:02:30]} Qc5 {[%emt 0:00:30]} 22. Nc7 {[%emt 0:00:30]} Rxc7 {[%emt 0:02:30]} 23. dxc7 {[%emt 0:00:30]} Qxc7 {[%emt 0:00:00]} 24. Ra3 {[%emt 0:01:30]} dxc3 {[%emt 0:00:00]} 25. Rxc3 {[%emt 0:00:30]} Qe5+ {[%emt 0:00:30]} 26. Qe2 {[%emt 0:00:30]} Qxa5 {[%emt 0:00:30]} 27. O-O {[%emt 0:05:46]} Nd5 {[%emt 0:10:30]} 28. Ra3 {[%emt 0:00:35]} Qb6+ {[%emt 0:01:11]} 29. Qf2 {[%emt 0:00:10]} Qxf2+ {[%emt 0:05:39]} 30. Kxf2 {[%emt 0:00:29]} a5 {[%emt 0:03:11]} 31. b3 {[%emt 0:01:17]} a4 {[%emt 0:03:47]} 32. bxa4 {[%emt 0:03:46]} Rxa4 {[%emt 0:02:25]} 33. Rfa1 {[%emt 0:01:56]} Rxa3 {[%emt 0:01:02]} 34. Rxa3 {[%emt 0:00:30]} Kf8 {[%emt 0:00:30]} 35. c4 {[%emt 0:00:30]} Nb4 {[%emt 0:00:30]} 36. Ra8+ {[%emt 0:00:30]} Ke7 {[%emt 0:00:30]} 37. Ke3 {[%emt 0:00:05]} e5 {[%emt 0:00:20]} 38. g4 {[%emt 0:00:41]} Nc2+ {[%emt 0:00:25]} 39. Kd3 {[%emt 0:00:46]} Ne1+ {[%emt 0:00:07]} 40. Ke2 {[%emt 0:01:04]} Nxf3 {[%emt 0:00:53]} 41. Ra7 {[%emt 0:00:25]} Nxh2 {[%emt 0:00:30]} 42. c5 {[%emt 0:00:30]} Kd8 {[%emt 0:00:30]} 43. c6 {[%emt 0:03:30]} Bxg4+ {[%emt 0:02:30]} 44. Ke3 {[%emt 0:00:30]} Be6 {[%emt 0:00:30]} 45. Kd3 {[%emt 0:00:30]} Nf3 {[%emt 0:01:30]} 46. Ke4 {[%emt 0:00:30]} Nd4 {[%emt 0:00:30]} 47. Ra8+ {[%emt 0:00:30]} Kc7 {[%emt 0:00:30]} 48. Kxe5 {[%emt 0:00:30]} Nxc6+ {[%emt 0:00:00]} 49. Ke4 {[%emt 0:00:00]} Kd6 {[%emt 0:00:00]} 50. Rh8 {[%emt 0:00:00]} h6 {[%emt 0:00:30]} 51. Rh7 {[%emt 0:00:00]} Bd5+ {[%emt 0:00:30]} 52. Ke3 {[%emt 0:00:00]} Ne7 {[%emt 0:00:30]} 53. Rh8 {[%emt 0:00:30]} Ke6 {[%emt 0:00:30]} 54. Rb8 {[%emt 0:00:00]} 0-1

[Event "TUR-chT Superleague 2018"]
[Site "Ankara"]
[Date "2018.07.26"]
[Round "2"]
[White "Unat, Can Haktan"]
[Black "Isik, Alparslan"]
[Result "1/2-1/2"]
[ECO "B55"]
[WhiteElo "2047"]
[BlackElo "2212"]
[Annotator "NA"]
[PlyCount "111"]
[EventDate "2018.07.25"]
[EventType "team-tourn"]
[EventCountry "TUR"]
[SourceTitle "playchess.com"]
[Source "ChessBase"]
[SourceQuality "1"]
[TimeControl "40/5400+30:1800+30"]

1. e4 {[%emt 0:00:30]} c5 {[%emt 0:01:00]} 2. Nf3 {[%emt 0:00:30]} d6 {[%emt 0:00:00]} 3. d4 {[%emt 0:00:30]} cxd4 {[%emt 0:00:00]} 4. Nxd4 {[%emt 0:00:30]} Nf6 {[%emt 0:00:30]} 5. f3 {[%emt 0:00:00]} e5 {[%emt 0:00:30]} 6. Bb5+ {[%emt 0:00:00]} Nbd7 {[%emt 0:00:00]} 7. Nf5 {[%emt 0:00:30]} d5 {[%emt 0:02:00]} 8. exd5 {[%emt 0:00:30]} a6 {[%emt 0:00:30]} 9. Bxd7+ {[%emt 0:00:00]} Bxd7 {[%emt 0:00:30]} 10. Ne3 {[%emt 0:00:00]} Bc5 {[%emt 0:03:30]} 11. Nc3 {[%emt 0:00:30]} O-O {[%emt 0:04:30]} 12. O-O {[%emt 0:01:30]} Nh5 {[%emt 0:05:30]} 13. g4 {[%emt 0:00:00]} f5 {[%emt 0:12:30]} 14. Kh1 {[%emt 0:08:00]} fxg4 {[%emt 0:08:30]} 15. Nxg4 {[%emt 0:08:30]} Bxg4 {[%emt 0:04:30]} 16. fxg4 {[%emt 0:00:30]} Rxf1+ {[%emt 0:00:30]} 17. Qxf1 {[%emt 0:00:30]} Qh4 {[%emt 0:00:00]} 18. gxh5 {[%emt 0:08:30]} Rf8 {[%emt 0:00:00]} 19. Bf4 {[%emt 0:00:00]} Rxf4 {[%emt 0:05:30]} 20. Qe2 {[%emt 0:04:00]} Qh3 {[%emt 0:10:30]} 21. Ne4 {[%emt 0:04:30]} Qe3 {[%emt 0:10:30]} 22. Qxe3 {[%emt 0:04:30]} Bxe3 {[%emt 0:00:30]} 23. Nd6 {[%emt 0:02:30]} Rf6 {[%emt 0:10:30]} 24. Nc4 {[%emt 0:00:30]} Bf4 {[%emt 0:03:02]} 25. d6 {[%emt 0:04:30]} Rf7 {[%emt 0:01:38]} 26. Rd1 {[%emt 0:00:30]} Rd7 {[%emt 0:00:31]} 27. Nb6 {[%emt 0:07:30]} Rd8 {[%emt 0:00:05]} 28. Kg2 {[%emt 0:08:30]} e4 {[%emt 0:04:08]} 29. d7 {[%emt 0:00:30]} Bc7 {[%emt 0:00:56]} 30. Na4 {[%emt 0:02:30]} b6 {[%emt 0:02:43]} 31. Nc3 {[%emt 0:00:30]} Kf7 {[%emt 0:02:50]} 32. Nxe4 {[%emt 0:06:30]} Ke7 {[%emt 0:00:09]} 33. Nc3 {[%emt 0:05:30]} Rxd7 {[%emt 0:00:49]} 34. Nd5+ {[%emt 0:00:00]} Kf7 {[%emt 0:00:21]} 35. c4 {[%emt 0:00:00]} Be5 {[%emt 0:02:35]} 36. b3 {[%emt 0:02:30]} Ke6 {[%emt 0:00:15]} 37. Rf1 {[%emt 0:02:30]} Rd8 {[%emt 0:00:50]} 38. Re1 {[%emt 0:02:19]} b5 {[%emt 0:00:35]} 39. Nc7+ {[%emt 0:00:30]} Kf5 {[%emt 0:00:30]} 40. Rf1+ {[%emt 0:00:00]} Ke4 {[%emt 0:01:33]} 41. Nxa6 {[%emt 0:02:11]} Rd2+ {[%emt 0:11:30]} 42. Rf2 {[%emt 0:00:30]} Rxf2+ {[%emt 0:00:30]} 43. Kxf2 {[%emt 0:00:00]} bxc4 {[%emt 0:00:00]} 44. bxc4 {[%emt 0:00:00]} Bxh2 {[%emt 0:00:00]} 45. Kg2 {[%emt 0:05:30]} Be5 {[%emt 0:05:30]} 46. c5 {[%emt 0:04:30]} Kd5 {[%emt 0:00:52]} 47. Kf3 {[%emt 0:05:30]} Kc6 {[%emt 0:04:54]} 48. Ke4 {[%emt 0:00:30]} Bg3 {[%emt 0:00:00]} 49. a4 {[%emt 0:01:30]} g6 {[%emt 0:00:57]} 50. hxg6 {[%emt 0:02:30]} hxg6 {[%emt 0:00:30]} 51. Kd4 {[%emt 0:00:00]} Bf2+ {[%emt 0:00:56]} 52. Kc4 {[%emt 0:00:00]} Be1 {[%emt 0:00:00]} 53. Nb8+ {[%emt 0:03:30]} Kc7 {[%emt 0:00:31]} 54. Na6+ {[%emt 0:00:30]} Kc6 {[%emt 0:00:07]} 55. Nb8+ {[%emt 0:01:30]} Kc7 {[%emt 0:00:30]} 56. Na6+ {[%emt 0:00:00]} 1/2-1/2

[Event "TUR-chT Superleague 2018"]
[Site "Ankara"]
[Date "2018.07.26"]
[Round "2"]
[White "Sade, Defne"]
[Black "Onbasi, Irem"]
[Result "1/2-1/2"]
[ECO "B12"]
[WhiteElo "1954"]
[BlackElo "1427"]
[Annotator "NA"]
[PlyCount "39"]
[EventDate "2018.07.25"]
[EventType "team-tourn"]
[EventCountry "TUR"]
[SourceTitle "playchess.com"]
[Source "ChessBase"]
[SourceQuality "1"]
[TimeControl "40/5400+30:1800+30"]

1. e4 c6 2. d4 d5 3. e5 Bf5 4. Be2 e6 5. Nf3 Nd7 6. O-O Ne7 7. Nh4 Be4 8. f3 Bg6 9. Nc3 c5 10. Nb5 Nc6 11. Nxg6 hxg6 12. c4 Nb6 13. cxd5 Nxd5 14. Bc4 Rc8 15. Qb3 cxd4 16. Rd1 Bc5 17. Nd6+ Bxd6 18. Bxd5 Bxe5 19. Bxc6+ bxc6 20. f4 1/2-1/2

[Event "TUR-chT Superleague 2018"]
[Site "Ankara"]
[Date "2018.07.26"]
[Round "2"]
[White "Gok, Fatih"]
[Black "Keler, Faruk"]
[Result "0-1"]
[ECO "D66"]
[WhiteElo "1952"]
[BlackElo "2286"]
[Annotator "NA"]
[PlyCount "100"]
[EventDate "2018.07.25"]
[EventType "team-tourn"]
[EventCountry "TUR"]
[SourceTitle "playchess.com"]
[Source "ChessBase"]
[SourceQuality "1"]
[TimeControl "40/5400+30:1800+30"]

1. d4 d5 2. c4 e6 3. Nf3 Nf6 4. Nc3 a6 5. Bg5 Be7 6. e3 O-O 7. Rc1 Nbd7 8. a4 c6 9. Bd3 dxc4 10. Bxc4 b5 11. Bd3 bxa4 12. Nxa4 Qa5+ 13. Nc3 c5 14. O-O cxd4 15. Ra1 Qb4 16. Nxd4 Bb7 17. Qb3 Rfb8 18. Qc2 h6 19. Bh4 Nc5 20. Be2 Rc8 21. f3 g6 22. Be1 Qb6 23. Na4 Nxa4 24. Qxa4 e5 25. Ba5 Qc5 26. b4 Qa7 27. Nc2 Nd5 28. Rfe1 Rxc2 29. Qxc2 Nxe3 30. Qc7 Nd5+ 31. Bb6 Qxb6+ 32. Qxb6 Nxb6 33. Reb1 Nd5 34. b5 Nc3 35. Rb2 Nxe2+ 36. Rxe2 Bc5+ 37. Kh1 Bd4 38. bxa6 Rxa6 39. Rb1 Bd5 40. h4 Kg7 41. Rd1 Ra1 42. Red2 Rxd1+ 43. Rxd1 g5 44. hxg5 hxg5 45. Kh2 f5 46. Kg3 Kf6 47. Rh1 e4 48. fxe4 fxe4 49. Rh8 e3 50. Rf8+ Ke7 0-1

[Event "TUR-chT Superleague 2018"]
[Site "Ankara"]
[Date "2018.07.26"]
[Round "2"]
[White "Cansun, Can Alp"]
[Black "Shevchenko, Kirill"]
[Result "1/2-1/2"]
[ECO "B90"]
[WhiteElo "1894"]
[BlackElo "2554"]
[Annotator "RC"]
[PlyCount "98"]
[EventDate "2018.07.25"]
[EventType "team-tourn"]
[EventCountry "TUR"]
[SourceTitle "playchess.com"]
[Source "ChessBase"]
[SourceQuality "1"]
[TimeControl "40/5400+30:1800+30"]

1. e4 c5 2. Nf3 d6 3. d4 cxd4 4. Nxd4 Nf6 5. Nc3 a6 6. Be3 e5 7. Nf3 Qc7 8. a4 Be7 9. a5 O-O 10. Be2 Be6 11. O-O Nbd7 12. Nd5 Nxd5 13. exd5 Bf5 14. c4 Bg6 15. Nd2 f5 16. f3 Bf6 17. Qb3 Rae8 18. Qa3 f4 19. Bf2 e4 20. fxe4 Bxe4 21. Nxe4 Rxe4 22. Bd3 Ree8 23. Rac1 Nc5 24. b4 Ne4 25. Bxe4 Rxe4 26. c5 dxc5 27. bxc5 Bd4 28. Bxd4 Rxd4 29. d6 Qc6 30. Rfd1 Qd5 31. Qf3 Rxd1+ 32. Qxd1 Qg5 33. Qf3 Re8 34. Qb3+ Kh8 35. Qf7 Qe5 36. Qb3 Qd4+ 37. Kf1 h6 38. Rd1 Qxc5 39. d7 Rd8 40. Qf7 Kh7 41. Rd5 Qc1+ 42. Kf2 Qe3+ 43. Kf1 Qe4 44. Kf2 Qe3+ 45. Kf1 Qc1+ 46. Kf2 Qb2+ {[%emt 2:11:26]} 47. Kf3 {[%emt 2:12:55]} Qa3+ {[%emt 0:00:30]} 48. Kf2 {[%emt 0:00:23]} Qc1 {[%emt 0:02:36]} 49. Qe7 {[%emt 0:05:58]} Qb2+ {[%emt 0:04:45]} 1/2-1/2

[Event "TUR-chT Superleague 2018"]
[Site "Ankara"]
[Date "2018.07.26"]
[Round "2"]
[White "Yildirim, Ibrahim Halil"]
[Black "Tasdogen, Dincer"]
[Result "0-1"]
[ECO "B38"]
[WhiteElo "1887"]
[BlackElo "2280"]
[Annotator "NA"]
[PlyCount "58"]
[EventDate "2018.07.25"]
[EventType "team-tourn"]
[EventCountry "TUR"]
[SourceTitle "playchess.com"]
[Source "ChessBase"]
[SourceQuality "1"]
[TimeControl "40/5400+30:1800+30"]

1. e4 {[%emt 0:00:30]} c5 {[%emt 0:01:00]} 2. Nf3 {[%emt 0:00:30]} g6 {[%emt 0:00:30]} 3. d4 {[%emt 0:00:30]} cxd4 {[%emt 0:00:30]} 4. Nxd4 {[%emt 0:00:30]} Bg7 {[%emt 0:00:30]} 5. c4 {[%emt 0:00:30]} Nc6 {[%emt 0:00:30]} 6. Be3 {[%emt 0:00:00]} Nf6 {[%emt 0:00:00]} 7. Nc3 {[%emt 0:00:00]} d6 {[%emt 0:00:00]} 8. Be2 {[%emt 0:05:30]} O-O {[%emt 0:00:00]} 9. O-O {[%emt 0:02:30]} Bd7 {[%emt 0:00:00]} 10. Nc2 {[%emt 0:00:30]} Rc8 {[%emt 0:00:00]} 11. f3 {[%emt 0:06:30]} a6 {[%emt 0:08:00]} 12. Na4 {[%emt 0:33:30]} Be6 {[%emt 0:12:30]} 13. Nb6 {[%emt 0:05:30]} Rb8 {[%emt 0:01:30]} 14. Rb1 {[%emt 0:11:30]} Nd7 {[%emt 0:02:30]} 15. Nd5 {[%emt 0:03:30]} f5 {[%emt 0:05:30]} 16. Nd4 {[%emt 0:06:30]} Bxd4 {[%emt 0:14:30]} 17. Bxd4 {[%emt 0:00:30]} fxe4 {[%emt 0:00:00]} 18. fxe4 {[%emt 0:00:43]} Rxf1+ {[%emt 0:00:00]} 19. Bxf1 {[%emt 0:00:55]} Bxd5 {[%emt 0:02:30]} 20. exd5 {[%emt 0:03:45]} Nxd4 {[%emt 0:00:30]} 21. Qxd4 {[%emt 0:00:01]} Ne5 {[%emt 0:02:30]} 22. b4 {[%emt 0:05:48]} Qd7 {[%emt 0:03:30]} 23. c5 {[%emt 0:04:37]} Rf8 {[%emt 0:04:30]} 24. b5 {[%emt 0:04:20]} Qf5 {[%emt 0:07:30]} 25. Rd1 {[%emt 0:02:57]} axb5 {[%emt 0:04:30]} 26. Bxb5 {[%emt 0:00:42]} Qg5 {[%emt 0:01:30]} 27. Kh1 {[%emt 0:00:30]} Ng4 {[%emt 0:00:00]} 28. Rf1 {[%emt 0:00:42]} Rxf1+ {[%emt 0:00:00]} 29. Bxf1 {[%emt 0:00:30]} Qh4 {[%emt 0:00:30]} 0-1

[Event "TUR-chT Superleague 2018"]
[Site "Ankara"]
[Date "2018.07.26"]
[Round "2"]
[White "Celik, Eda"]
[Black "Shuvalova, Polina"]
[Result "0-1"]
[ECO "B23"]
[WhiteElo "1864"]
[BlackElo "2417"]
[Annotator "NA RC"]
[PlyCount "102"]
[EventDate "2018.07.25"]
[EventType "team-tourn"]
[EventCountry "TUR"]
[SourceTitle "playchess.com"]
[Source "ChessBase"]
[SourceQuality "1"]
[TimeControl "40/5400+30:1800+30"]

1. e4 c5 2. Nc3 d6 3. f4 Nc6 4. Nf3 g6 5. Bc4 Bg7 6. d3 e6 7. a3 Nge7 8. Ba2 O-O 9. O-O Rb8 10. Ne2 d5 11. c3 b5 12. e5 a5 13. d4 c4 14. Bb1 b4 15. g4 Bd7 16. Ng3 f6 17. exf6 Bxf6 18. Ne5 Bg7 19. axb4 axb4 20. Qe2 Nxe5 21. fxe5 Rxf1+ 22. Qxf1 Nc6 23. Qh3 Ra8 24. Rxa8 Qxa8 25. Bc2 Qa1 26. Ne2 bxc3 27. bxc3 Qa2 28. Bd1 Qb1 29. Kf2 Bf8 30. Qe3 Be7 31. Ba4 Bh4+ 32. Kg2 Qa2 33. Bxc6 Bxc6 34. Qd2 Qb1 35. Qf4 Qc2 36. Qf3 Be7 37. Bh6 g5 38. Kg1 Qb1+ 39. Kf2 Qg6 40. Qh3 Be8 41. Kg2 Qd3 42. Qf3 Ba4 43. Ng1 Qc2+ {[%emt 2:06:01]} 44. Ne2 {[%emt 2:17:44]} Qg6 {[%emt 0:00:30]} 45. Qh3 {[%emt 0:00:30]} Bd1 {[%emt 0:00:30]} 46. Kf1 {[%emt 0:03:13]} Qe4 {[%emt 0:02:27]} 47. Ng3 {[%emt 0:00:58]} Bxg4 {[%emt 0:00:32]} 48. Qg2 {[%emt 0:00:30]} Qd3+ {[%emt 0:02:20]} 49. Kg1 {[%emt 0:00:52]} Qxc3 {[%emt 0:00:29]} 50. Qf2 {[%emt 0:00:36]} Bh3 {[%emt 0:01:04]} 51. Qa2 {[%emt 0:00:36]} Qe1+ {[%emt 0:00:07]} 0-1